[Event "*** SCC Grand Prix: Titled Tuesday Blitz"]
[Site "Chess.com"]
[Date "2020.06.09"]
[Round "2"]
[White "DishonorOnYourCow"]
[Black "RitvarsReimanis"]
[Result "0-1"]
[WhiteElo "2289"]
[BlackElo "2487"]
[TimeControl "180+1"]
[EndTime "9:19:41 PDT"]
[Termination "RitvarsReimanis won on time"]

1. d4 {[%clk 0:03:00.9]} 1... Nf6 {[%clk 0:02:59.2]} 2. c4 {[%clk 0:02:59.6]}
2... e6 {[%clk 0:02:57.4]} 3. Nf3 {[%clk 0:02:58]} 3... d5 {[%clk 0:02:56.3]} 4.
Nc3 {[%clk 0:02:57.1]} 4... Be7 {[%clk 0:02:50.2]} 5. Bf4 {[%clk 0:02:55.3]}
5... O-O {[%clk 0:02:50.5]} 6. e3 {[%clk 0:02:54.7]} 6... Nbd7 {[%clk 0:02:49]}
7. Rc1 {[%clk 0:02:52.5]} 7... c6 {[%clk 0:02:45.4]} 8. cxd5 {[%clk 0:02:50.7]}
8... exd5 {[%clk 0:02:45.3]} 9. Bd3 {[%clk 0:02:51.3]} 9... Re8 {[%clk
0:02:45.8]} 10. O-O {[%clk 0:02:50.9]} 10... Nf8 {[%clk 0:02:46.4]} 11. h3
{[%clk 0:02:50.8]} 11... Ng6 {[%clk 0:02:46]} 12. Bh2 {[%clk 0:02:50.2]} 12...
Bd6 {[%clk 0:02:46.6]} 13. Bxd6 {[%clk 0:02:46.4]} 13... Qxd6 {[%clk 0:02:47.5]}
14. Na4 {[%clk 0:02:46.6]} 14... Ne4 {[%clk 0:02:46.7]} 15. Nc5 {[%clk
0:02:44.4]} 15... Nxc5 {[%clk 0:02:46.3]} 16. dxc5 {[%clk 0:02:44.3]} 16... Qf6
{[%clk 0:02:45.9]} 17. b4 {[%clk 0:02:43.3]} 17... a6 {[%clk 0:02:45.6]} 18. a4
{[%clk 0:02:39.5]} 18... Bd7 {[%clk 0:02:45.5]} 19. Nd4 {[%clk 0:02:38.4]} 19...
Nh4 {[%clk 0:02:39.7]} 20. Qh5 {[%clk 0:02:21.2]} 20... g6 {[%clk 0:02:37.4]}
21. Qh6 {[%clk 0:02:21.3]} 21... Bf5 {[%clk 0:02:25.7]} 22. Bxf5 {[%clk
0:02:09.8]} 22... Nxf5 {[%clk 0:02:25.7]} 23. Qf4 {[%clk 0:02:09.5]} 23... Re4
{[%clk 0:02:10.4]} 24. Qf3 {[%clk 0:01:50.6]} 24... Kg7 {[%clk 0:02:02.8]} 25.
Nc2 {[%clk 0:01:43]} 25... Qb2 {[%clk 0:01:47.7]} 26. Qe2 {[%clk 0:01:29.6]}
26... Rc4 {[%clk 0:00:57.5]} 27. Qd3 {[%clk 0:01:04.8]} 27... Re8 {[%clk
0:00:50.5]} 28. Rfd1 {[%clk 0:00:33.9]} 28... h5 {[%clk 0:00:41.9]} 29. Qd2
{[%clk 0:00:26.4]} 29... Ree4 {[%clk 0:00:26.4]} 30. b5 {[%clk 0:00:18]} 30...
axb5 {[%clk 0:00:24]} 31. axb5 {[%clk 0:00:18.9]} 31... Rxc5 {[%clk 0:00:22.8]}
32. bxc6 {[%clk 0:00:18.8]} 32... bxc6 {[%clk 0:00:23.7]} 33. Qe2 {[%clk
0:00:02.8]} 33... Rec4 {[%clk 0:00:21.4]} 34. Nd4 {[%clk 0:00:01.9]} 34... Qxe2
{[%clk 0:00:12.4]} 35. Nxe2 {[%clk 0:00:02.8]} 35... Rxc1 {[%clk 0:00:11.2]} 36.
Rxc1 {[%clk 0:00:03.7]} 36... Rxc1+ {[%clk 0:00:11.5]} 37. Nxc1 {[%clk
0:00:04.5]} 37... Kf6 {[%clk 0:00:11.8]} 38. Nd3 {[%clk 0:00:05.2]} 38... Ke6
{[%clk 0:00:10]} 39. Kf1 {[%clk 0:00:05.9]} 39... Kd6 {[%clk 0:00:10.6]} 40. Ke2
{[%clk 0:00:06.3]} 40... c5 {[%clk 0:00:10.2]} 41. Nf4 {[%clk 0:00:07]} 41...
Ne7 {[%clk 0:00:10.2]} 42. g4 {[%clk 0:00:07.3]} 42... hxg4 {[%clk 0:00:10]} 43.
hxg4 {[%clk 0:00:08.2]} 43... Nc6 {[%clk 0:00:09.5]} 44. Kd3 {[%clk 0:00:08.6]}
44... Ne5+ {[%clk 0:00:09.8]} 45. Kc3 {[%clk 0:00:08.8]} 45... Nxg4 {[%clk
0:00:10.7]} 46. Nh3 {[%clk 0:00:06.6]} 46... Ne5 {[%clk 0:00:11.2]} 47. f4
{[%clk 0:00:06]} 47... Nc6 {[%clk 0:00:11]} 48. Ng5 {[%clk 0:00:05.5]} 48... Nd8
{[%clk 0:00:10.5]} 49. Kd3 {[%clk 0:00:05.4]} 49... f6 {[%clk 0:00:10.5]} 50.
Nh7 {[%clk 0:00:05.2]} 50... Ke6 {[%clk 0:00:09.9]} 51. Nf8+ {[%clk 0:00:05.4]}
51... Kf7 {[%clk 0:00:09.1]} 52. Nd7 {[%clk 0:00:06.1]} 52... Nb7 {[%clk
0:00:09.1]} 53. Nb6 {[%clk 0:00:05.5]} 53... Ke6 {[%clk 0:00:08.7]} 54. Na4
{[%clk 0:00:05.8]} 54... g5 {[%clk 0:00:07.6]} 55. fxg5 {[%clk 0:00:05.7]} 55...
fxg5 {[%clk 0:00:08.5]} 56. e4 {[%clk 0:00:06.3]} 56... Ke5 {[%clk 0:00:08]} 57.
exd5 {[%clk 0:00:06.3]} 57... Kxd5 {[%clk 0:00:08.9]} 58. Nc3+ {[%clk
0:00:06.7]} 58... Ke5 {[%clk 0:00:09.3]} 59. Ne4 {[%clk 0:00:07.6]} 59... g4
{[%clk 0:00:08.9]} 60. Ng3 {[%clk 0:00:07.2]} 60... Kf4 {[%clk 0:00:08.9]} 61.
Ne2+ {[%clk 0:00:07.2]} 61... Kg5 {[%clk 0:00:07.9]} 62. Kc4 {[%clk 0:00:07.2]}
62... Kh4 {[%clk 0:00:07.8]} 63. Kb5 {[%clk 0:00:07.6]} 63... g3 {[%clk
0:00:08.1]} 64. Kb6 {[%clk 0:00:08]} 64... g2 {[%clk 0:00:07.2]} 65. Kxb7 {[%clk
0:00:08.3]} 65... c4 {[%clk 0:00:07.8]} 66. Kc6 {[%clk 0:00:06.6]} 66... c3
{[%clk 0:00:07]} 67. Ng1 {[%clk 0:00:02.6]} 67... c2 {[%clk 0:00:06.9]} 68. Nf3+
{[%clk 0:00:03]} 68... Kg3 {[%clk 0:00:06.5]} 69. Nd4 {[%clk 0:00:03]} 69...
c1=Q+ {[%clk 0:00:06.6]} 0-1

[Event "*** SCC Grand Prix: Titled Tuesday Blitz"]
[Site "Chess.com"]
[Date "2020.06.09"]
[Round "2"]
[White "FrogMist"]
[Black "NidjatMamedov"]
[Result "0-1"]
[WhiteElo "2374"]
[BlackElo "2680"]
[TimeControl "180+1"]
[EndTime "9:19:45 PDT"]
[Termination "NidjatMamedov won by resignation"]

1. e4 {[%clk 0:03:00.9]} 1... c5 {[%clk 0:02:56.3]} 2. Nf3 {[%clk 0:03:01]} 2...
d6 {[%clk 0:02:56.2]} 3. d4 {[%clk 0:03:01.2]} 3... cxd4 {[%clk 0:02:57.1]} 4.
Nxd4 {[%clk 0:03:02.1]} 4... Nf6 {[%clk 0:02:57.3]} 5. Nc3 {[%clk 0:03:02.1]}
5... a6 {[%clk 0:02:57.3]} 6. Bg5 {[%clk 0:03:02.3]} 6... e6 {[%clk 0:02:55.4]}
7. f4 {[%clk 0:03:02.3]} 7... Qb6 {[%clk 0:02:56]} 8. Qd2 {[%clk 0:02:59.1]}
8... Qxb2 {[%clk 0:02:55.9]} 9. Rb1 {[%clk 0:02:59.6]} 9... Qa3 {[%clk
0:02:56.5]} 10. e5 {[%clk 0:03:00.1]} 10... dxe5 {[%clk 0:02:57.4]} 11. fxe5
{[%clk 0:03:01]} 11... Nfd7 {[%clk 0:02:57.1]} 12. Ne4 {[%clk 0:02:48.7]} 12...
Qxa2 {[%clk 0:02:55.2]} 13. Rd1 {[%clk 0:02:48.3]} 13... Qd5 {[%clk 0:02:55]}
14. Qe3 {[%clk 0:02:39.8]} 14... Qxe5 {[%clk 0:02:48.8]} 15. Be2 {[%clk
0:02:26.2]} 15... h6 {[%clk 0:02:45.5]} 16. Bh4 {[%clk 0:02:11.8]} 16... Bc5
{[%clk 0:02:31.7]} 17. Bg3 {[%clk 0:02:08.7]} 17... Bxd4 {[%clk 0:02:30.6]} 18.
Rxd4 {[%clk 0:02:09.6]} 18... Qa5+ {[%clk 0:02:21.8]} 19. Rd2 {[%clk 0:02:06.2]}
19... O-O {[%clk 0:02:10.9]} 20. Bd6 {[%clk 0:02:01.6]} 20... f5 {[%clk
0:02:10.2]} 21. Bxf8 {[%clk 0:01:51.9]} 21... Nxf8 {[%clk 0:02:11.1]} 22. Qc3
{[%clk 0:01:34.2]} 22... Qxc3 {[%clk 0:01:56.7]} 23. Nxc3 {[%clk 0:01:35.1]}
23... Nc6 {[%clk 0:01:57.3]} 24. Na4 {[%clk 0:01:32.1]} 24... e5 {[%clk
0:01:52]} 25. Nb6 {[%clk 0:01:27.1]} 25... Rb8 {[%clk 0:01:51.8]} 26. O-O {[%clk
0:01:01.3]} 26... Be6 {[%clk 0:01:49.6]} 27. c3 {[%clk 0:00:43.5]} 27... e4
{[%clk 0:01:35]} 28. Bc4 {[%clk 0:00:39.3]} 28... g6 {[%clk 0:00:54.3]} 29.
Bxe6+ {[%clk 0:00:27.4]} 29... Nxe6 {[%clk 0:00:55.2]} 30. Rd6 {[%clk
0:00:26.4]} 30... Re8 {[%clk 0:00:50.5]} 31. g4 {[%clk 0:00:20.3]} 31... fxg4
{[%clk 0:00:41.7]} 32. Nd7 {[%clk 0:00:20.4]} 32... Kg7 {[%clk 0:00:37.9]} 33.
Nf6 {[%clk 0:00:20.2]} 33... Re7 {[%clk 0:00:38.3]} 34. Nxe4 {[%clk 0:00:20.2]}
34... Ne5 {[%clk 0:00:31]} 35. Rb1 {[%clk 0:00:19.6]} 35... Nf4 {[%clk
0:00:26.7]} 36. Rdb6 {[%clk 0:00:18.8]} 36... Nf7 {[%clk 0:00:22.2]} 37. Ng3
{[%clk 0:00:17.5]} 37... Nd8 {[%clk 0:00:20.8]} 38. Kf2 {[%clk 0:00:15]} 38...
h5 {[%clk 0:00:19.3]} 39. R1b4 {[%clk 0:00:13.3]} 39... Nd5 {[%clk 0:00:17.2]}
40. Rd4 {[%clk 0:00:11.5]} 40... Nxb6 {[%clk 0:00:16.9]} 41. Rxd8 {[%clk
0:00:12.1]} 41... a5 {[%clk 0:00:16.9]} 42. Rd6 {[%clk 0:00:10.2]} 42... Nc4
{[%clk 0:00:16.6]} 43. Rd4 {[%clk 0:00:08.7]} 43... b5 {[%clk 0:00:17.1]} 44.
Ne4 {[%clk 0:00:09.1]} 44... a4 {[%clk 0:00:16.8]} 45. Nc5 {[%clk 0:00:07]}
45... a3 {[%clk 0:00:16.9]} 46. Rd1 {[%clk 0:00:06.4]} 46... a2 {[%clk
0:00:16.5]} 47. Ra1 {[%clk 0:00:06.6]} 47... Ra7 {[%clk 0:00:17]} 48. Nd3 {[%clk
0:00:05.5]} 48... Ra3 {[%clk 0:00:16.5]} 49. Nb4 {[%clk 0:00:05.4]} 49... Rxc3
{[%clk 0:00:16.1]} 50. Rxa2 {[%clk 0:00:06]} 50... Rb3 {[%clk 0:00:15.9]} 51.
Nd5 {[%clk 0:00:06.4]} 51... h4 {[%clk 0:00:15.9]} 52. Nc7 {[%clk 0:00:05.8]}
52... g3+ {[%clk 0:00:13.2]} 53. hxg3 {[%clk 0:00:06.7]} 53... hxg3+ {[%clk
0:00:12]} 54. Kg2 {[%clk 0:00:07.6]} 54... Ne3+ {[%clk 0:00:10.9]} 55. Kxg3
{[%clk 0:00:06.8]} 55... Nd5+ {[%clk 0:00:10.5]} 56. Kg4 {[%clk 0:00:06.7]}
56... Nxc7 {[%clk 0:00:11.4]} 57. Rc2 {[%clk 0:00:06.6]} 57... Ne6 {[%clk
0:00:10.6]} 58. Rc6 {[%clk 0:00:07]} 58... Kf6 {[%clk 0:00:10.8]} 59. Rb6 {[%clk
0:00:06.9]} 59... Rb4+ {[%clk 0:00:11.4]} 60. Kg3 {[%clk 0:00:07.3]} 60... g5
{[%clk 0:00:11.8]} 61. Kf3 {[%clk 0:00:07.6]} 61... Kf5 {[%clk 0:00:11.3]} 62.
Kg3 {[%clk 0:00:08.5]} 62... g4 {[%clk 0:00:11.8]} 63. Kh4 {[%clk 0:00:08.8]}
63... Rb3 {[%clk 0:00:11.5]} 64. Rxb5+ {[%clk 0:00:07.7]} 64... Rxb5 {[%clk
0:00:11.4]} 65. Kh5 {[%clk 0:00:07.3]} 65... Rb3 {[%clk 0:00:11.3]} 0-1

[Event "*** SCC Grand Prix: Titled Tuesday Blitz"]
[Site "Chess.com"]
[Date "2020.06.09"]
[Round "2"]
[White "Witik"]
[Black "Rakhmanov_Aleksandr"]
[Result "0-1"]
[WhiteElo "2575"]
[BlackElo "2863"]
[TimeControl "180+1"]
[EndTime "9:19:47 PDT"]
[Termination "Rakhmanov_Aleksandr won on time"]

1. d4 {[%clk 0:03:00.9]} 1... Nf6 {[%clk 0:02:59.7]} 2. Bf4 {[%clk 0:02:58.9]}
2... d6 {[%clk 0:02:59.4]} 3. Nf3 {[%clk 0:02:58.8]} 3... Nbd7 {[%clk
0:02:58.7]} 4. Nc3 {[%clk 0:02:52]} 4... c5 {[%clk 0:02:56.2]} 5. e3 {[%clk
0:02:47.4]} 5... g6 {[%clk 0:02:55.3]} 6. h3 {[%clk 0:02:46.6]} 6... Bg7 {[%clk
0:02:55]} 7. Be2 {[%clk 0:02:47.1]} 7... O-O {[%clk 0:02:55.2]} 8. O-O {[%clk
0:02:47.4]} 8... b6 {[%clk 0:02:55.7]} 9. a4 {[%clk 0:02:42.6]} 9... a6 {[%clk
0:02:54.7]} 10. Bh2 {[%clk 0:02:40.1]} 10... Bb7 {[%clk 0:02:54.7]} 11. Re1
{[%clk 0:02:40.4]} 11... Rc8 {[%clk 0:02:51.9]} 12. Bf1 {[%clk 0:02:35.2]} 12...
Qc7 {[%clk 0:02:49]} 13. d5 {[%clk 0:02:25.4]} 13... Ne8 {[%clk 0:02:38.5]} 14.
e4 {[%clk 0:02:23.6]} 14... Qb8 {[%clk 0:02:39]} 15. Qd2 {[%clk 0:02:09.8]}
15... Rd8 {[%clk 0:02:33.7]} 16. Qg5 {[%clk 0:02:01.5]} 16... Bf6 {[%clk
0:02:31.3]} 17. Qh6 {[%clk 0:02:00.9]} 17... Bg7 {[%clk 0:02:31.4]} 18. Qh4
{[%clk 0:01:56.3]} 18... f6 {[%clk 0:02:31]} 19. Nd2 {[%clk 0:01:46.8]} 19...
Nc7 {[%clk 0:02:22.7]} 20. Nc4 {[%clk 0:01:34]} 20... Ba8 {[%clk 0:02:18.8]} 21.
Qg4 {[%clk 0:00:53.3]} 21... Ne5 {[%clk 0:02:11.2]} 22. Qd1 {[%clk 0:00:48.3]}
22... Nxc4 {[%clk 0:02:06.3]} 23. Bxc4 {[%clk 0:00:47.8]} 23... b5 {[%clk
0:02:07.2]} 24. axb5 {[%clk 0:00:48.7]} 24... axb5 {[%clk 0:02:08]} 25. Bf1
{[%clk 0:00:47.8]} 25... b4 {[%clk 0:02:06]} 26. Na4 {[%clk 0:00:43.7]} 26...
Rde8 {[%clk 0:02:01.1]} 27. Bc4 {[%clk 0:00:42.3]} 27... Bb7 {[%clk 0:01:55.3]}
28. Nxc5 {[%clk 0:00:41.8]} 28... Bc8 {[%clk 0:01:47.2]} 29. Bb3 {[%clk
0:00:34.4]} 29... Kh8 {[%clk 0:01:42.5]} 30. Nd3 {[%clk 0:00:25.8]} 30... Qb6
{[%clk 0:01:40.3]} 31. Kh1 {[%clk 0:00:20.2]} 31... f5 {[%clk 0:01:39.7]} 32. e5
{[%clk 0:00:19.1]} 32... Bb7 {[%clk 0:01:37.8]} 33. exd6 {[%clk 0:00:17.3]}
33... exd6 {[%clk 0:01:38.7]} 34. Qf3 {[%clk 0:00:15.7]} 34... Nb5 {[%clk
0:01:33.2]} 35. Qf4 {[%clk 0:00:12.2]} 35... Nd4 {[%clk 0:01:25.6]} 36. Qxd6
{[%clk 0:00:11.9]} 36... Qxd6 {[%clk 0:01:25.4]} 37. Bxd6 {[%clk 0:00:12.8]}
37... Rg8 {[%clk 0:01:13]} 38. Ne5 {[%clk 0:00:07.2]} 38... Bf6 {[%clk
0:01:02.5]} 39. Nd7 {[%clk 0:00:03.9]} 39... Nxb3 {[%clk 0:00:57.8]} 40. cxb3
{[%clk 0:00:02.9]} 40... Bxb2 {[%clk 0:00:54.7]} 41. Be5+ {[%clk 0:00:01.7]}
41... Bxe5 {[%clk 0:00:46.5]} 42. Nxe5 {[%clk 0:00:02.6]} 42... Bxd5 {[%clk
0:00:46.4]} 43. Ra4 {[%clk 0:00:01.9]} 43... Rb8 {[%clk 0:00:38]} 44. Re3 {[%clk
0:00:01.9]} 44... Rgc8 {[%clk 0:00:34.9]} 45. Rd3 {[%clk 0:00:01.8]} 45... Be6
{[%clk 0:00:32.7]} 46. Rd4 {[%clk 0:00:02.1]} 46... Rc5 {[%clk 0:00:28.5]} 47.
f4 {[%clk 0:00:01.7]} 47... Bxb3 {[%clk 0:00:25.4]} 48. Raxb4 {[%clk 0:00:01.8]}
48... Rxb4 {[%clk 0:00:26.3]} 49. Rxb4 {[%clk 0:00:02.7]} 49... Bd5 {[%clk
0:00:27]} 50. Rb8+ {[%clk 0:00:02.7]} 50... Kg7 {[%clk 0:00:26.6]} 51. Rd8
{[%clk 0:00:03.6]} 51... Be4 {[%clk 0:00:17.9]} 52. Rd7+ {[%clk 0:00:03.6]}
52... Kf6 {[%clk 0:00:18.4]} 53. Rf7+ {[%clk 0:00:03.2]} 53... Ke6 {[%clk
0:00:17.8]} 54. Rxh7 {[%clk 0:00:04]} 54... Rc1+ {[%clk 0:00:18.3]} 55. Kh2
{[%clk 0:00:03.8]} 55... Rc2 {[%clk 0:00:19.2]} 56. Kg3 {[%clk 0:00:01.2]} 56...
Rxg2+ {[%clk 0:00:19.4]} 57. Kh4 {[%clk 0:00:02.1]} 57... g5+ {[%clk 0:00:12.2]}
58. Kh5 {[%clk 0:00:02.5]} 58... gxf4 {[%clk 0:00:12]} 59. Ng6 {[%clk
0:00:03.2]} 59... f3 {[%clk 0:00:07.9]} 60. Nf4+ {[%clk 0:00:03.5]} 60... Ke5
{[%clk 0:00:08.8]} 61. Nxg2 {[%clk 0:00:03.7]} 61... fxg2 {[%clk 0:00:09.7]} 62.
Rg7 {[%clk 0:00:04.6]} 62... f4 {[%clk 0:00:09.9]} 63. Kh4 {[%clk 0:00:03.8]}
63... Kd4 {[%clk 0:00:09.3]} 64. Rg4 {[%clk 0:00:02.9]} 64... Ke3 {[%clk
0:00:09.5]} 65. Kg5 {[%clk 0:00:03.2]} 65... f3 {[%clk 0:00:09.6]} 66. h4 {[%clk
0:00:03.9]} 66... f2 {[%clk 0:00:10]} 0-1

[Event "*** SCC Grand Prix: Titled Tuesday Blitz"]
[Site "Chess.com"]
[Date "2020.06.09"]
[Round "2"]
[White "Anton_Demchenko"]
[Black "Pomegranate988"]
[Result "1-0"]
[WhiteElo "2812"]
[BlackElo "2558"]
[TimeControl "180+1"]
[EndTime "9:19:47 PDT"]
[Termination "Anton_Demchenko won by checkmate"]

1. e4 {[%clk 0:03:00.9]} 1... c6 {[%clk 0:02:59.8]} 2. d4 {[%clk 0:02:58]} 2...
d5 {[%clk 0:03:00]} 3. Nd2 {[%clk 0:02:58.7]} 3... dxe4 {[%clk 0:02:59.7]} 4.
Nxe4 {[%clk 0:02:59.6]} 4... Nf6 {[%clk 0:03:00.1]} 5. Ng3 {[%clk 0:02:58.5]}
5... g6 {[%clk 0:02:58.7]} 6. Nf3 {[%clk 0:02:57.6]} 6... Bg7 {[%clk 0:02:58.9]}
7. Bc4 {[%clk 0:02:56.4]} 7... O-O {[%clk 0:02:58.5]} 8. O-O {[%clk 0:02:56.7]}
8... Nbd7 {[%clk 0:02:57.2]} 9. Re1 {[%clk 0:02:55.2]} 9... Nb6 {[%clk 0:02:55]}
10. Bb3 {[%clk 0:02:55.4]} 10... Bg4 {[%clk 0:02:48.8]} 11. c3 {[%clk
0:02:55.1]} 11... Qc7 {[%clk 0:02:45]} 12. h3 {[%clk 0:02:54.8]} 12... Bxf3
{[%clk 0:02:42.1]} 13. Qxf3 {[%clk 0:02:55.7]} 13... Nbd5 {[%clk 0:02:34]} 14.
c4 {[%clk 0:02:54.4]} 14... Nb6 {[%clk 0:02:32.2]} 15. Bf4 {[%clk 0:02:54.6]}
15... Qd7 {[%clk 0:02:32.4]} 16. Rad1 {[%clk 0:02:54.4]} 16... Rad8 {[%clk
0:02:31.3]} 17. Nf1 {[%clk 0:02:36.7]} 17... Nc8 {[%clk 0:02:29.2]} 18. Ne3
{[%clk 0:02:25.5]} 18... Nd6 {[%clk 0:02:28.8]} 19. Ba4 {[%clk 0:02:20.8]} 19...
b5 {[%clk 0:02:19.8]} 20. cxb5 {[%clk 0:02:20.9]} 20... cxb5 {[%clk 0:02:16.6]}
21. Bb3 {[%clk 0:02:16.7]} 21... Rc8 {[%clk 0:02:07]} 22. Be5 {[%clk 0:02:12.6]}
22... Nc4 {[%clk 0:02:00.8]} 23. Bxc4 {[%clk 0:01:59.2]} 23... bxc4 {[%clk
0:01:59.6]} 24. d5 {[%clk 0:01:52.9]} 24... Ne8 {[%clk 0:01:51.8]} 25. Bxg7
{[%clk 0:01:31.7]} 25... Kxg7 {[%clk 0:01:47.2]} 26. Qf4 {[%clk 0:01:29.4]}
26... Nd6 {[%clk 0:01:44.1]} 27. Qd4+ {[%clk 0:01:29.7]} 27... f6 {[%clk
0:01:39.6]} 28. Rd2 {[%clk 0:01:24.7]} 28... Rfe8 {[%clk 0:01:36.3]} 29. Nd1
{[%clk 0:01:23.2]} 29... Qb7 {[%clk 0:01:20.8]} 30. Nc3 {[%clk 0:01:21.1]} 30...
Rc7 {[%clk 0:01:17.6]} 31. Rde2 {[%clk 0:01:17.6]} 31... Qb6 {[%clk 0:01:10.3]}
32. Qf4 {[%clk 0:01:16.8]} 32... Rd7 {[%clk 0:01:08]} 33. h4 {[%clk 0:01:15.7]}
33... h5 {[%clk 0:01:06.2]} 34. g4 {[%clk 0:01:16.2]} 34... hxg4 {[%clk
0:01:05.8]} 35. Qxg4 {[%clk 0:01:17.1]} 35... Rb7 {[%clk 0:01:00.1]} 36. h5
{[%clk 0:01:17]} 36... g5 {[%clk 0:00:59.4]} 37. Ne4 {[%clk 0:01:10.1]} 37...
Nf7 {[%clk 0:00:53.5]} 38. Ng3 {[%clk 0:01:08.7]} 38... Nh6 {[%clk 0:00:53]} 39.
Nf5+ {[%clk 0:01:08.7]} 39... Nxf5 {[%clk 0:00:47]} 40. Qxf5 {[%clk 0:01:09.6]}
40... Qd4 {[%clk 0:00:46.1]} 41. Qg6+ {[%clk 0:01:05.2]} 41... Kf8 {[%clk
0:00:45]} 42. Qh6+ {[%clk 0:00:25.4]} 42... Kg8 {[%clk 0:00:44.6]} 43. Qg6+
{[%clk 0:00:24.5]} 43... Kf8 {[%clk 0:00:44.9]} 44. Qf5 {[%clk 0:00:25.1]} 44...
Rb5 {[%clk 0:00:33.9]} 45. Re5 {[%clk 0:00:13.8]} 45... Qh4 {[%clk 0:00:28.1]}
46. Re6 {[%clk 0:00:12]} 46... Qxh5 {[%clk 0:00:23.8]} 47. Qe4 {[%clk
0:00:09.9]} 47... Qf7 {[%clk 0:00:19.2]} 48. d6 {[%clk 0:00:10.4]} 48... Re5
{[%clk 0:00:16.5]} 49. Rxe5 {[%clk 0:00:10.3]} 49... fxe5 {[%clk 0:00:16.4]} 50.
Qxe5 {[%clk 0:00:11]} 50... Qf6 {[%clk 0:00:14.1]} 51. dxe7+ {[%clk 0:00:09.7]}
51... Kf7 {[%clk 0:00:14.4]} 52. Qd5+ {[%clk 0:00:10.2]} 52... Kg7 {[%clk
0:00:14.5]} 53. Qxc4 {[%clk 0:00:10.7]} 53... Rxe7 {[%clk 0:00:14.9]} 54. Rxe7+
{[%clk 0:00:07.8]} 54... Qxe7 {[%clk 0:00:14.6]} 55. Qd4+ {[%clk 0:00:08.7]}
55... Kg6 {[%clk 0:00:14.7]} 56. Kf1 {[%clk 0:00:08.9]} 56... Qb7 {[%clk
0:00:14.7]} 57. Ke2 {[%clk 0:00:07.1]} 57... Qe7+ {[%clk 0:00:14.3]} 58. Kd2
{[%clk 0:00:06.6]} 58... Qe6 {[%clk 0:00:14.3]} 59. a3 {[%clk 0:00:06.6]} 59...
Qa6 {[%clk 0:00:13.7]} 60. Kc3 {[%clk 0:00:07]} 60... Kh5 {[%clk 0:00:13.7]} 61.
Kd2 {[%clk 0:00:02.5]} 61... Qa5+ {[%clk 0:00:13.7]} 62. Qc3 {[%clk 0:00:02.7]}
62... Qd5+ {[%clk 0:00:13.8]} 63. Qd3 {[%clk 0:00:03.2]} 63... Qa5+ {[%clk
0:00:14.2]} 64. Ke2 {[%clk 0:00:03.3]} 64... Qe5+ {[%clk 0:00:14]} 65. Kf3
{[%clk 0:00:03.6]} 65... Qxb2 {[%clk 0:00:14.1]} 66. Qh7# {[%clk 0:00:03.7]} 1-0